[Event "Late-Titled-Tuesday-Blitz-March-19-2024"]
[Site "Chess.com"]
[Date "2024.03.19"]
[Round "6"]
[White "Kavyev_Ruslan"]
[Black "grandcoach"]
[Result "0-1"]
[WhiteElo "2447"]
[BlackElo "2252"]
[TimeControl "180+1"]
[EndTime "15:06:50 PDT"]
[Termination "grandcoach won by checkmate"]

1. d4 {[%clk 0:03:00.9]} 1... Nf6 {[%clk 0:02:59]} 2. Nf3 {[%clk 0:03:00.6]}
2... d5 {[%clk 0:02:57.2]} 3. c4 {[%clk 0:03:00.6]} 3... e6 {[%clk 0:02:55.3]}
4. g3 {[%clk 0:02:59.4]} 4... dxc4 {[%clk 0:02:52.3]} 5. Bg2 {[%clk 0:02:59.9]}
5... a6 {[%clk 0:02:50.4]} 6. a4 {[%clk 0:02:55.8]} 6... Nc6 {[%clk 0:02:49.9]}
7. O-O {[%clk 0:02:53.9]} 7... Rb8 {[%clk 0:02:50.1]} 8. a5 {[%clk 0:02:21.1]}
8... Bb4 {[%clk 0:02:46.2]} 9. Bd2 {[%clk 0:02:17.5]} 9... Qe7 {[%clk
0:02:29.4]} 10. Qc2 {[%clk 0:02:10.5]} 10... O-O {[%clk 0:02:25.2]} 11. Qxc4
{[%clk 0:02:07.8]} 11... Rd8 {[%clk 0:02:19.9]} 12. e3 {[%clk 0:02:05.1]} 12...
Bxd2 {[%clk 0:01:51.6]} 13. Nbxd2 {[%clk 0:02:04.3]} 13... e5 {[%clk 0:01:52.1]}
14. dxe5 {[%clk 0:01:51.4]} 14... Nxe5 {[%clk 0:01:51.9]} 15. Rfd1 {[%clk
0:01:40.5]} 15... Nxc4 {[%clk 0:01:49.3]} 16. Nxc4 {[%clk 0:01:38]} 16... Rxd1+
{[%clk 0:01:48.2]} 17. Rxd1 {[%clk 0:01:38.9]} 17... Bg4 {[%clk 0:01:45.7]} 18.
h3 {[%clk 0:01:36.7]} 18... Bxf3 {[%clk 0:01:45.4]} 19. Bxf3 {[%clk 0:01:37.6]}
19... c6 {[%clk 0:01:38.1]} 20. Nb6 {[%clk 0:01:33.2]} 20... Rd8 {[%clk
0:01:36.7]} 21. Rc1 {[%clk 0:01:33.8]} 21... Qb4 {[%clk 0:01:32.3]} 22. Nc4
{[%clk 0:01:31.9]} 22... g6 {[%clk 0:01:23.5]} 23. Kg2 {[%clk 0:01:30.7]} 23...
Kg7 {[%clk 0:01:22.6]} 24. Rc2 {[%clk 0:01:27.7]} 24... Rd3 {[%clk 0:01:10.4]}
25. Be2 {[%clk 0:01:20.5]} 25... Rb3 {[%clk 0:01:07]} 26. g4 {[%clk 0:01:17.5]}
26... Nd5 {[%clk 0:01:02.7]} 27. Kg3 {[%clk 0:01:01.2]} 27... Qe7 {[%clk
0:00:55.4]} 28. Bf3 {[%clk 0:00:56]} 28... Nf6 {[%clk 0:00:45.1]} 29. Nd2 {[%clk
0:00:48.3]} 29... Rb5 {[%clk 0:00:43.2]} 30. Nc4 {[%clk 0:00:47.3]} 30... Ne4+
{[%clk 0:00:41.8]} 31. Kg2 {[%clk 0:00:47.9]} 31... Nd6 {[%clk 0:00:39.8]} 32.
Na3 {[%clk 0:00:40.2]} 32... Rxa5 {[%clk 0:00:38.3]} 33. Rd2 {[%clk 0:00:40.9]}
33... Ne4 {[%clk 0:00:34.4]} 34. Rd4 {[%clk 0:00:38.5]} 34... Nc5 {[%clk
0:00:26.6]} 35. Nc4 {[%clk 0:00:38.4]} 35... Rb5 {[%clk 0:00:25.6]} 36. Be2
{[%clk 0:00:18.9]} 36... Ne6 {[%clk 0:00:23.7]} 37. Rd1 {[%clk 0:00:15.1]} 37...
Rb4 {[%clk 0:00:23.2]} 38. Rd2 {[%clk 0:00:13.8]} 38... b5 {[%clk 0:00:23.2]}
39. Nd6 {[%clk 0:00:12.9]} 39... a5 {[%clk 0:00:21.3]} 40. Bf3 {[%clk
0:00:12.3]} 40... a4 {[%clk 0:00:19.9]} 41. Bxc6 {[%clk 0:00:12.3]} 41... Nd8
{[%clk 0:00:14.1]} 42. Bxb5 {[%clk 0:00:11.5]} 42... Rxb5 {[%clk 0:00:13.4]} 43.
Nxb5 {[%clk 0:00:12.4]} 43... Nc6 {[%clk 0:00:13.3]} 44. Nc3 {[%clk 0:00:11.7]}
44... Qb4 {[%clk 0:00:12.4]} 45. Re2 {[%clk 0:00:11.2]} 45... Na5 {[%clk
0:00:12.2]} 46. Rc2 {[%clk 0:00:09.6]} 46... Nc4 {[%clk 0:00:12.7]} 47. Nd5
{[%clk 0:00:05.5]} 47... Qb3 {[%clk 0:00:11.3]} 48. Rc3 {[%clk 0:00:04.2]} 48...
Qb5 {[%clk 0:00:09.2]} 49. Nc7 {[%clk 0:00:02]} 49... Qb7+ {[%clk 0:00:08.6]}
50. Kg3 {[%clk 0:00:02.7]} 50... Qxc7+ {[%clk 0:00:08.1]} 51. f4 {[%clk
0:00:03.3]} 51... a3 {[%clk 0:00:07.4]} 52. Kf2 {[%clk 0:00:04.2]} 52... axb2
{[%clk 0:00:06.8]} 53. Rb3 {[%clk 0:00:04.8]} 53... b1=Q {[%clk 0:00:06.7]} 54.
Rxb1 {[%clk 0:00:03.6]} 54... Qc5 {[%clk 0:00:07.3]} 55. Re1 {[%clk 0:00:03.3]}
55... Qb6 {[%clk 0:00:06.4]} 56. Re2 {[%clk 0:00:03]} 56... f5 {[%clk
0:00:06.3]} 57. Kf3 {[%clk 0:00:03.5]} 57... Qc6+ {[%clk 0:00:05.7]} 58. Kf2
{[%clk 0:00:02.1]} 58... Qe4 {[%clk 0:00:06.2]} 59. g5 {[%clk 0:00:01.6]} 59...
Kf7 {[%clk 0:00:05.7]} 60. Re1 {[%clk 0:00:02.2]} 60... Nb2 {[%clk 0:00:05.6]}
61. Re2 {[%clk 0:00:03.1]} 61... Nd3+ {[%clk 0:00:05.5]} 62. Kg3 {[%clk
0:00:02.3]} 62... Qh1 {[%clk 0:00:04.6]} 63. Rh2 {[%clk 0:00:02]} 63... Qg1+
{[%clk 0:00:04.6]} 64. Rg2 {[%clk 0:00:02]} 64... Qxe3+ {[%clk 0:00:05.1]} 65.
Kh2 {[%clk 0:00:01.8]} 65... Qxf4+ {[%clk 0:00:05.6]} 66. Kh1 {[%clk 0:00:02.7]}
66... Qf3 {[%clk 0:00:05.6]} 67. Kg1 {[%clk 0:00:01.8]} 67... Nf4 {[%clk
0:00:05.7]} 68. Rf2 {[%clk 0:00:01.6]} 68... Nxh3+ {[%clk 0:00:05.5]} 69. Kh2
{[%clk 0:00:01.7]} 69... Qxf2+ {[%clk 0:00:05.2]} 70. Kxh3 {[%clk 0:00:02.6]}
70... f4 {[%clk 0:00:05]} 71. Kg4 {[%clk 0:00:02.7]} 71... Qg3# {[%clk
0:00:05.6]} 0-1

[Event "Late-Titled-Tuesday-Blitz-March-19-2024"]
[Site "Chess.com"]
[Date "2024.03.19"]
[Round "6"]
[White "ahkashefi2800"]
[Black "wild3000"]
[Result "0-1"]
[WhiteElo "2590"]
[BlackElo "2451"]
[TimeControl "180+1"]
[EndTime "15:06:58 PDT"]
[Termination "wild3000 won on time"]

1. e4 {[%clk 0:02:56]} 1... c5 {[%clk 0:02:31.1]} 2. Nf3 {[%clk 0:02:55.8]} 2...
e6 {[%clk 0:02:30.4]} 3. d4 {[%clk 0:02:56.1]} 3... cxd4 {[%clk 0:02:30.7]} 4.
Nxd4 {[%clk 0:02:56.5]} 4... a6 {[%clk 0:02:28.5]} 5. Bd3 {[%clk 0:02:54.5]}
5... Nc6 {[%clk 0:02:27.9]} 6. Nxc6 {[%clk 0:02:50.8]} 6... bxc6 {[%clk
0:02:28.2]} 7. O-O {[%clk 0:02:49.4]} 7... d5 {[%clk 0:02:28.4]} 8. e5 {[%clk
0:02:47.3]} 8... Qc7 {[%clk 0:02:24.3]} 9. f4 {[%clk 0:02:44.6]} 9... Ne7 {[%clk
0:02:17.6]} 10. Nd2 {[%clk 0:02:42.8]} 10... Nf5 {[%clk 0:02:13.8]} 11. Bxf5
{[%clk 0:02:34.6]} 11... exf5 {[%clk 0:02:14.7]} 12. Nb3 {[%clk 0:02:29.6]}
12... Be6 {[%clk 0:02:05.1]} 13. Be3 {[%clk 0:02:29.3]} 13... c5 {[%clk
0:02:03.4]} 14. c3 {[%clk 0:02:27.3]} 14... Be7 {[%clk 0:01:57.3]} 15. Qd2
{[%clk 0:02:27.5]} 15... O-O {[%clk 0:01:56.5]} 16. Rac1 {[%clk 0:02:26.8]}
16... a5 {[%clk 0:01:48.8]} 17. Qf2 {[%clk 0:02:26.8]} 17... Rac8 {[%clk
0:01:47]} 18. Nd2 {[%clk 0:02:26.1]} 18... a4 {[%clk 0:01:46.5]} 19. Nf3 {[%clk
0:02:25.9]} 19... a3 {[%clk 0:01:35.2]} 20. b3 {[%clk 0:02:25.7]} 20... h6
{[%clk 0:01:29.5]} 21. Rfd1 {[%clk 0:02:24.9]} 21... Rfd8 {[%clk 0:01:29]} 22.
Qf1 {[%clk 0:02:09.3]} 22... Qb7 {[%clk 0:01:24]} 23. Kh1 {[%clk 0:02:03.6]}
23... Rd7 {[%clk 0:01:07.1]} 24. Bg1 {[%clk 0:01:59.1]} 24... Rdd8 {[%clk
0:01:06.5]} 25. Qe2 {[%clk 0:01:58.4]} 25... Rd7 {[%clk 0:01:06]} 26. Qc2 {[%clk
0:01:46.6]} 26... Rdc7 {[%clk 0:00:58.5]} 27. Qe2 {[%clk 0:01:44.6]} 27... Rd7
{[%clk 0:00:57.8]} 28. Qe1 {[%clk 0:01:44.5]} 28... Rdd8 {[%clk 0:00:56.7]} 29.
Qg3 {[%clk 0:01:40.9]} 29... d4 {[%clk 0:00:48.4]} 30. c4 {[%clk 0:01:40.7]}
30... Bd7 {[%clk 0:00:38.2]} 31. Ne1 {[%clk 0:01:40.8]} 31... Bc6 {[%clk
0:00:37.4]} 32. Nd3 {[%clk 0:01:41.2]} 32... Be4 {[%clk 0:00:37.2]} 33. Rd2
{[%clk 0:01:40.8]} 33... Rc6 {[%clk 0:00:36]} 34. Rcd1 {[%clk 0:01:41]} 34...
Rg6 {[%clk 0:00:35.9]} 35. Qh3 {[%clk 0:01:40.2]} 35... Qc6 {[%clk 0:00:32.8]}
36. Ne1 {[%clk 0:01:40.1]} 36... f6 {[%clk 0:00:29.8]} 37. exf6 {[%clk
0:01:27.8]} 37... Qxf6 {[%clk 0:00:26.6]} 38. Bf2 {[%clk 0:01:27.3]} 38... Re8
{[%clk 0:00:22.3]} 39. Bg3 {[%clk 0:01:27]} 39... Bd6 {[%clk 0:00:20.7]} 40. Nd3
{[%clk 0:01:17.4]} 40... Rg4 {[%clk 0:00:20]} 41. Nf2 {[%clk 0:01:13.3]} 41...
Rg6 {[%clk 0:00:18.3]} 42. Kg1 {[%clk 0:01:03.1]} 42... Kh7 {[%clk 0:00:18.2]}
43. Re1 {[%clk 0:01:02.1]} 43... Re7 {[%clk 0:00:17.5]} 44. Rdd1 {[%clk
0:01:01.4]} 44... Qf7 {[%clk 0:00:17]} 45. Nxe4 {[%clk 0:00:58.8]} 45... fxe4
{[%clk 0:00:16.4]} 46. f5 {[%clk 0:00:59.1]} 46... Rf6 {[%clk 0:00:15]} 47. Bh4
{[%clk 0:00:59]} 47... e3 {[%clk 0:00:14.4]} 48. Bxf6 {[%clk 0:00:58.6]} 48...
Qxf6 {[%clk 0:00:14.4]} 49. Re2 {[%clk 0:00:42.6]} 49... Re4 {[%clk 0:00:14.3]}
50. g3 {[%clk 0:00:30.2]} 50... Re8 {[%clk 0:00:10.5]} 51. Qg4 {[%clk
0:00:30.1]} 51... Rf8 {[%clk 0:00:09.8]} 52. Rf1 {[%clk 0:00:24.6]} 52... Qg5
{[%clk 0:00:07.4]} 53. Qe4 {[%clk 0:00:19.7]} 53... Qf6 {[%clk 0:00:07.5]} 54.
Qd3 {[%clk 0:00:19.9]} 54... Be5 {[%clk 0:00:07.3]} 55. Rg2 {[%clk 0:00:16.1]}
55... Kh8 {[%clk 0:00:07.3]} 56. Rf3 {[%clk 0:00:16.3]} 56... Qg5 {[%clk
0:00:06.8]} 57. Kf1 {[%clk 0:00:16.3]} 57... Bf6 {[%clk 0:00:06.9]} 58. Ke2
{[%clk 0:00:16.4]} 58... Qg4 {[%clk 0:00:06.8]} 59. Rg1 {[%clk 0:00:14.9]} 59...
Re8 {[%clk 0:00:06.9]} 60. Rg2 {[%clk 0:00:13.8]} 60... Qh3 {[%clk 0:00:06.7]}
61. Rg1 {[%clk 0:00:02.7]} 61... Qxh2+ {[%clk 0:00:06.8]} 62. Kf1 {[%clk
0:00:01.2]} 62... e2+ {[%clk 0:00:07]} 63. Ke1 {[%clk 0:00:01.4]} 63... Qxg1+
{[%clk 0:00:06.8]} 64. Kd2 {[%clk 0:00:01.9]} 64... e1=Q+ {[%clk 0:00:07.1]} 0-1

[Event "Late-Titled-Tuesday-Blitz-March-19-2024"]
[Site "Chess.com"]
[Date "2024.03.19"]
[Round "6"]
[White "sacrifoice"]
[Black "Defenstrator"]
[Result "1-0"]
[WhiteElo "2253"]
[BlackElo "2451"]
[TimeControl "180+1"]
[EndTime "15:06:58 PDT"]
[Termination "sacrifoice won by resignation"]

1. e4 {[%clk 0:03:00.8]} 1... c5 {[%clk 0:01:38]} 2. Nf3 {[%clk 0:03:00.1]} 2...
Nc6 {[%clk 0:01:38.5]} 3. Bb5 {[%clk 0:02:57]} 3... Nd4 {[%clk 0:01:38.7]} 4.
Nxd4 {[%clk 0:02:56]} 4... cxd4 {[%clk 0:01:39.6]} 5. O-O {[%clk 0:02:55.8]}
5... Nf6 {[%clk 0:01:39.4]} 6. d3 {[%clk 0:02:51.3]} 6... e6 {[%clk 0:01:36.7]}
7. Bg5 {[%clk 0:02:47.7]} 7... Qb6 {[%clk 0:01:25.1]} 8. Bc4 {[%clk 0:02:36.6]}
8... Qxb2 {[%clk 0:01:20]} 9. Nd2 {[%clk 0:02:35.8]} 9... Be7 {[%clk 0:01:12.7]}
10. e5 {[%clk 0:02:21.3]} 10... Nd5 {[%clk 0:00:40.8]} 11. Ne4 {[%clk 0:01:54]}
11... Bxg5 {[%clk 0:00:36.9]} 12. Nxg5 {[%clk 0:01:53.9]} 12... f6 {[%clk
0:00:29.7]} 13. Bxd5 {[%clk 0:01:36.3]} 13... fxg5 {[%clk 0:00:30]} 14. Bb3
{[%clk 0:01:33.9]} 14... O-O {[%clk 0:00:28.8]} 15. Qg4 {[%clk 0:01:33.8]} 15...
h6 {[%clk 0:00:24.3]} 16. Rab1 {[%clk 0:01:25.9]} 16... Qa3 {[%clk 0:00:23.4]}
17. Qxd4 {[%clk 0:01:24.8]} 17... b6 {[%clk 0:00:20.6]} 18. Qe4 {[%clk
0:01:16.8]} 18... Ba6 {[%clk 0:00:16.6]} 19. c4 {[%clk 0:01:10]} 19... Rab8
{[%clk 0:00:13]} 20. f4 {[%clk 0:00:55.5]} 20... Bb7 {[%clk 0:00:13.3]} 21. Qe3
{[%clk 0:00:51.5]} 21... gxf4 {[%clk 0:00:12.1]} 22. Rxf4 {[%clk 0:00:52.4]}
22... Rxf4 {[%clk 0:00:12.1]} 23. Qxf4 {[%clk 0:00:53.3]} 23... Rf8 {[%clk
0:00:12.4]} 24. Qd2 {[%clk 0:00:47.2]} 24... Qe7 {[%clk 0:00:10.7]} 25. d4
{[%clk 0:00:45.5]} 25... Qh4 {[%clk 0:00:10.7]} 26. d5 {[%clk 0:00:38.3]} 26...
exd5 {[%clk 0:00:07.5]} 27. cxd5 {[%clk 0:00:39.2]} 27... Rf5 {[%clk 0:00:07.2]}
28. Re1 {[%clk 0:00:37.5]} 28... Kh8 {[%clk 0:00:05.7]} 29. e6 {[%clk 0:00:36]}
29... dxe6 {[%clk 0:00:05.8]} 30. dxe6 {[%clk 0:00:35.7]} 30... Rg5 {[%clk
0:00:02.9]} 31. Qd8+ {[%clk 0:00:24.3]} 31... Kh7 {[%clk 0:00:03.2]} 32. Bc2+
{[%clk 0:00:24.1]} 32... g6 {[%clk 0:00:03]} 33. Qc7+ {[%clk 0:00:20.6]} 33...
Kh8 {[%clk 0:00:03]} 34. Qb8+ {[%clk 0:00:20.3]} 34... Kg7 {[%clk 0:00:02.6]}
35. Qxb7+ {[%clk 0:00:20.4]} 35... Kf6 {[%clk 0:00:03.4]} 36. Rf1+ {[%clk
0:00:19.4]} 36... Ke5 {[%clk 0:00:04.1]} 37. Qc7+ {[%clk 0:00:19.2]} 37... Kd4
{[%clk 0:00:04.3]} 38. Qd6+ {[%clk 0:00:18.2]} 38... Kc3 {[%clk 0:00:04.6]} 39.
Qc6+ {[%clk 0:00:15.6]} 39... Kd2 {[%clk 0:00:02.8]} 40. e7 {[%clk 0:00:14.1]}
40... Qd4+ {[%clk 0:00:02.3]} 41. Kh1 {[%clk 0:00:13.4]} 41... Re5 {[%clk
0:00:02.3]} 42. e8=Q {[%clk 0:00:11]} 42... Rxe8 {[%clk 0:00:02]} 43. Qxe8
{[%clk 0:00:11.9]} 43... Kxc2 {[%clk 0:00:02.9]} 44. Qe2+ {[%clk 0:00:11.5]}
44... Kc3 {[%clk 0:00:03.2]} 45. Rf3+ {[%clk 0:00:11.1]} 45... Kb4 {[%clk
0:00:03.6]} 46. Qe1+ {[%clk 0:00:09]} 46... Ka4 {[%clk 0:00:02.9]} 47. Rh3
{[%clk 0:00:06.8]} 47... g5 {[%clk 0:00:02.2]} 48. Rxh6 {[%clk 0:00:05.7]} 48...
b5 {[%clk 0:00:02.9]} 49. Rh3 {[%clk 0:00:04.8]} 49... a5 {[%clk 0:00:02.1]} 50.
Re3 {[%clk 0:00:04.2]} 50... b4 {[%clk 0:00:01.2]} 51. Re4 {[%clk 0:00:04]}
51... Qb2 {[%clk 0:00:01.8]} 52. Qd1+ {[%clk 0:00:04.2]} 52... Ka3 {[%clk
0:00:02.3]} 53. Re3+ {[%clk 0:00:04.2]} 53... Kxa2 {[%clk 0:00:02.9]} 54. Re2
{[%clk 0:00:04.5]} 54... a4 {[%clk 0:00:02.4]} 55. Rxb2+ {[%clk 0:00:04.6]}
55... Kxb2 {[%clk 0:00:03.2]} 56. Qxa4 {[%clk 0:00:05.1]} 56... b3 {[%clk
0:00:04.1]} 57. h3 {[%clk 0:00:05.4]} 57... Kc3 {[%clk 0:00:03.7]} 58. g3 {[%clk
0:00:05]} 58... b2 {[%clk 0:00:04.4]} 59. Qa2 {[%clk 0:00:04.8]} 59... Kc2
{[%clk 0:00:04]} 60. Qc4+ {[%clk 0:00:04.5]} 60... Kd1 {[%clk 0:00:04.1]} 61.
Qb3+ {[%clk 0:00:04.5]} 61... Kc1 {[%clk 0:00:04.6]} 62. h4 {[%clk 0:00:04.8]}
62... gxh4 {[%clk 0:00:04.7]} 63. gxh4 {[%clk 0:00:05.1]} 63... b1=Q {[%clk
0:00:05.6]} 64. Qxb1+ {[%clk 0:00:05.3]} 64... Kxb1 {[%clk 0:00:06.5]} 65. h5
{[%clk 0:00:06.2]} 1-0

[Event "Late-Titled-Tuesday-Blitz-March-19-2024"]
[Site "Chess.com"]
[Date "2024.03.19"]
[Round "6"]
[White "MaxLeto"]
[Black "ViktoriyaTarasova"]
[Result "1/2-1/2"]
[WhiteElo "2500"]
[BlackElo "2333"]
[TimeControl "180+1"]
[EndTime "15:07:01 PDT"]
[Termination "Game drawn by repetition"]

1. a3 {[%clk 0:02:53.4]} 1... e5 {[%clk 0:02:58.3]} 2. b3 {[%clk 0:02:54.3]}
2... d5 {[%clk 0:02:57.8]} 3. c3 {[%clk 0:02:55.2]} 3... Nc6 {[%clk 0:02:57.8]}
4. d3 {[%clk 0:02:56.1]} 4... Nf6 {[%clk 0:02:58.3]} 5. e3 {[%clk 0:02:57]} 5...
Bd6 {[%clk 0:02:57.5]} 6. f3 {[%clk 0:02:57.9]} 6... O-O {[%clk 0:02:57.8]} 7.
g3 {[%clk 0:02:58.8]} 7... Be6 {[%clk 0:02:54.7]} 8. h3 {[%clk 0:02:59.2]} 8...
Nd7 {[%clk 0:02:51.5]} 9. Ne2 {[%clk 0:02:57.7]} 9... f5 {[%clk 0:02:51.7]} 10.
Bg2 {[%clk 0:02:56.7]} 10... Qe7 {[%clk 0:02:43.8]} 11. O-O {[%clk 0:02:45.7]}
11... b5 {[%clk 0:02:39.6]} 12. Nd2 {[%clk 0:02:35.1]} 12... a5 {[%clk
0:02:38.8]} 13. Bb2 {[%clk 0:02:35.3]} 13... a4 {[%clk 0:02:35.5]} 14. b4 {[%clk
0:02:35.1]} 14... Nd8 {[%clk 0:02:32.6]} 15. f4 {[%clk 0:02:09.1]} 15... c5
{[%clk 0:02:12.2]} 16. bxc5 {[%clk 0:01:39.5]} 16... Nxc5 {[%clk 0:02:06.9]} 17.
fxe5 {[%clk 0:01:27]} 17... Bxe5 {[%clk 0:02:05.3]} 18. Qb1 {[%clk 0:01:04.9]}
18... Bc7 {[%clk 0:01:56.8]} 19. Nf4 {[%clk 0:00:51.1]} 19... Qf7 {[%clk
0:01:40.4]} 20. Nf3 {[%clk 0:00:49.4]} 20... h6 {[%clk 0:01:35.5]} 21. Nd4
{[%clk 0:00:48.4]} 21... Bxf4 {[%clk 0:01:12.2]} 22. exf4 {[%clk 0:00:49.3]}
22... Bd7 {[%clk 0:01:09.2]} 23. Qa2 {[%clk 0:00:46.2]} 23... Nb3 {[%clk
0:00:50.1]} 24. Nxb3 {[%clk 0:00:43.2]} 24... axb3 {[%clk 0:00:50.7]} 25. Qxb3
{[%clk 0:00:44.1]} 25... Bc6 {[%clk 0:00:48.7]} 26. Rfe1 {[%clk 0:00:38.9]}
26... Nb7 {[%clk 0:00:46.5]} 27. Re5 {[%clk 0:00:35.9]} 27... Rfd8 {[%clk
0:00:43.4]} 28. Rae1 {[%clk 0:00:34.1]} 28... Nc5 {[%clk 0:00:43.5]} 29. Qc2
{[%clk 0:00:27.7]} 29... Re8 {[%clk 0:00:40.5]} 30. Bc1 {[%clk 0:00:20.6]} 30...
Rxe5 {[%clk 0:00:36.3]} 31. Rxe5 {[%clk 0:00:21.5]} 31... Re8 {[%clk 0:00:36.5]}
32. Be3 {[%clk 0:00:21.1]} 32... Nd7 {[%clk 0:00:33.6]} 33. Rxe8+ {[%clk
0:00:19.2]} 33... Qxe8 {[%clk 0:00:34]} 34. Bd4 {[%clk 0:00:18.2]} 34... Nf8
{[%clk 0:00:20.9]} 35. Be5 {[%clk 0:00:13.7]} 35... Ng6 {[%clk 0:00:20.1]} 36.
Bd4 {[%clk 0:00:13.9]} 36... Qe1+ {[%clk 0:00:19.3]} 37. Kh2 {[%clk 0:00:14.2]}
37... Qe6 {[%clk 0:00:19.9]} 38. Qb3 {[%clk 0:00:13.4]} 38... Kh7 {[%clk
0:00:19.8]} 39. Qb4 {[%clk 0:00:13.5]} 39... Qd7 {[%clk 0:00:14.9]} 40. Qc5
{[%clk 0:00:12.9]} 40... Bb7 {[%clk 0:00:14]} 41. Qa7 {[%clk 0:00:11.4]} 41...
Nf8 {[%clk 0:00:11.2]} 42. Be5 {[%clk 0:00:10.8]} 42... Ne6 {[%clk 0:00:11.2]}
43. Qe3 {[%clk 0:00:10.3]} 43... g6 {[%clk 0:00:09.8]} 44. g4 {[%clk 0:00:10.3]}
44... fxg4 {[%clk 0:00:09.5]} 45. hxg4 {[%clk 0:00:11.2]} 45... Nf8 {[%clk
0:00:10]} 46. Bh3 {[%clk 0:00:10.9]} 46... Qf7 {[%clk 0:00:09.5]} 47. d4 {[%clk
0:00:11.3]} 47... Bc8 {[%clk 0:00:09.8]} 48. Qg3 {[%clk 0:00:11.2]} 48... Be6
{[%clk 0:00:09.6]} 49. Qh4 {[%clk 0:00:11.4]} 49... Nd7 {[%clk 0:00:10]} 50. g5
{[%clk 0:00:11.6]} 50... h5 {[%clk 0:00:10.4]} 51. Bd6 {[%clk 0:00:02]} 51...
Bxh3 {[%clk 0:00:09.7]} 52. Qxh3 {[%clk 0:00:02.5]} 52... Qe8 {[%clk 0:00:09.6]}
53. Qf3 {[%clk 0:00:02.3]} 53... Qe6 {[%clk 0:00:09.4]} 54. Be5 {[%clk
0:00:02.6]} 54... Qf5 {[%clk 0:00:09.5]} 55. Kg3 {[%clk 0:00:01.9]} 55... Qe6
{[%clk 0:00:09.1]} 56. Qe3 {[%clk 0:00:02]} 56... Nb6 {[%clk 0:00:08.6]} 57. Qf3
{[%clk 0:00:02.4]} 57... Nc4 {[%clk 0:00:08.9]} 58. a4 {[%clk 0:00:02.1]} 58...
bxa4 {[%clk 0:00:08.9]} 59. Qd1 {[%clk 0:00:02.8]} 59... a3 {[%clk 0:00:08.9]}
60. Qa4 {[%clk 0:00:03.5]} 60... Qg4+ {[%clk 0:00:09.1]} 61. Kf2 {[%clk
0:00:03.5]} 61... Qh4+ {[%clk 0:00:09.1]} 62. Kg2 {[%clk 0:00:04.1]} 62... Qg4+
{[%clk 0:00:09.3]} 63. Kf2 {[%clk 0:00:04.5]} 63... Qh4+ {[%clk 0:00:09.5]} 64.
Kg2 {[%clk 0:00:04.6]} 64... Ne3+ {[%clk 0:00:10]} 65. Kf3 {[%clk 0:00:04.7]}
65... Qh3+ {[%clk 0:00:10]} 66. Ke2 {[%clk 0:00:05.1]} 66... Qg2+ {[%clk
0:00:08.9]} 67. Kxe3 {[%clk 0:00:05.4]} 67... Qe4+ {[%clk 0:00:09.6]} 68. Kd2
{[%clk 0:00:05.6]} 68... Qg2+ {[%clk 0:00:10]} 69. Kd3 {[%clk 0:00:05.9]} 69...
Qe4+ {[%clk 0:00:10.2]} 70. Kd2 {[%clk 0:00:06.4]} 70... Qg2+ {[%clk 0:00:10.6]}
71. Kd1 {[%clk 0:00:06.5]} 71... Qf1+ {[%clk 0:00:10.8]} 72. Kc2 {[%clk
0:00:07]} 72... Qe2+ {[%clk 0:00:11]} 73. Kc1 {[%clk 0:00:06.7]} 73... Qe1+
{[%clk 0:00:10]} 74. Kc2 {[%clk 0:00:06.8]} 74... Qe2+ {[%clk 0:00:10.4]} 75.
Kc1 {[%clk 0:00:06.7]} 75... Qe1+ {[%clk 0:00:10.8]} 76. Kc2 {[%clk 0:00:07]}
76... Qe2+ {[%clk 0:00:11.4]} 1/2-1/2